fUST/lending_fUST_20250209
["ID","MTS","AMOUNT","RATE_DAILY","PERIOD"]
[352336087,1739045442852,-513.28479079,0.00011369,2]
[352336089,1739045442861,-1835.32,0.00011369,2]
[352336091,1739045442871,-500.0,0.00011369,2]
[352336093,1739045442881,-5165.62,0.00011369,2]
[352336095,1739045442890,-151.0,0.00011369,2]
[352336097,1739045442900,-500.0,0.00011369,2]
[352336099,1739045442910,-500.0,0.00011369,2]
[352336101,1739045442919,-813.1,0.00011369,2]
[352336103,1739045442929,-500.0,0.00011369,2]
[352336105,1739045442939,-980.49,0.00011369,2]
[352336107,1739045442949,-500.0,0.00011369,2]
[352336108,1739045442959,-481.37302079,0.00011369,2]
[352336110,1739045442968,-500.0,0.00011369,2]
[352336112,1739045442977,-890.74,0.00011369,2]
[352336114,1739045442988,-500.0,0.00011369,2]
[352336117,1739045442998,-375.51,0.00011369,2]
[352336119,1739045443008,-500.0,0.00011369,2]
[352336121,1739045443018,-174.13751698,0.00011369,2]
[352336123,1739045443027,-500.0,0.00011369,2]
[352336125,1739045443037,-500.0,0.00011369,2]
[352336127,1739045443047,-2100.73,0.00011369,2]
[352336129,1739045443056,-697.61,0.00011369,2]
[352336131,1739045443066,-151.0,0.00011369,2]
[352336133,1739045443075,-151.0,0.00011369,2]
[352336135,1739045443085,-500.0,0.00011369,2]
[352336137,1739045443096,-500.0,0.00011369,2]
[352336138,1739045443105,-9524.0,0.00011369,2]
[352336140,1739045443117,-1778.64,0.00011369,2]
[352336142,1739045443127,-513.95,0.00011369,2]
[352336144,1739045443137,-3625.45,0.00011369,2]
[352336146,1739045443147,-500.0,0.00011369,2]
[352336148,1739045443158,-581.28,0.00011369,2]
[352336151,1739045443168,-988.76,0.00011369,2]
[352336153,1739045443178,-1999.03,0.00011369,2]
[352336155,1739045443187,-500.0,0.00011369,2]
[352336158,1739045443198,-651.28,0.00011369,2]
[352336160,1739045443207,-500.0,0.00011369,2]
[352336162,1739045443217,-500.0,0.00011375,2]
[352336164,1739045443227,-431.595035,0.00011452,2]
[352336166,1739045443237,-151.0,0.000115,2]
[352336168,1739045443247,-151.0,0.000115,2]
[352336170,1739045443256,-500.0,0.00011506,2]
[352336172,1739045443266,-500.0,0.00011506,2]
[352336174,1739045443276,-500.0,0.00011506,2]
[352336176,1739045443285,-500.0,0.00011506,2]
[352336178,1739045443295,-895.58,0.00011506,2]
[352336180,1739045443304,-594.22,0.00011506,2]
[352336182,1739045443314,-940.53,0.00011506,2]
[352336184,1739045443324,-500.0,0.00011506,2]
[352336186,1739045443335,-500.0,0.00011506,2]
[352336188,1739045443345,-246.04762436,0.00011506,2]
[352336190,1739045443355,-500.0,0.00011506,2]
[352336192,1739045443367,-500.0,0.00011506,2]
[352336194,1739045443378,-725.5,0.00011506,2]
[352336196,1739045443388,-665.28,0.00011506,2]
[352336198,1739045443398,-500.0,0.00011506,2]
[352336200,1739045443408,-151.0,0.00011506,2]
[352336202,1739045443418,-822.94,0.00011506,2]
[352336204,1739045443427,-500.0,0.00011506,2]
[352336206,1739045443438,-500.0,0.00011506,2]
[352336208,1739045443446,-500.0,0.00011506,2]
[352336210,1739045443456,-711.34,0.00011506,2]
[352336212,1739045443466,-500.0,0.00011506,2]
[352336214,1739045443475,-500.0,0.00011506,2]
[352336216,1739045443485,-231.96,0.00011506,2]
[352336218,1739045443494,-264.327127,0.00011506,2]
[352336220,1739045443504,-264.327127,0.00011506,2]
[352336221,1739045443515,-500.0,0.00011506,2]
[352336224,1739045443525,-500.0,0.00011506,2]
[352336225,1739045443536,-760.39,0.00011506,2]
[352336228,1739045443546,-255.701513,0.00011506,2]
[352336229,1739045443555,-500.0,0.00011506,2]
[352336240,1739045443690,-255.701513,0.00011506,2]
[352336242,1739045443701,-217.921946,0.00011506,2]
[352336244,1739045443710,-217.921946,0.00011506,2]
[352336246,1739045443719,-567.02,0.00011506,2]
[352336248,1739045443728,-281.99002132,0.00011506,2]
[352336250,1739045443737,-500.0,0.00011506,2]
[352336252,1739045443746,-649.8897557,0.00011506,2]
[352336254,1739045443755,-500.0,0.00011506,2]
[352336255,1739045443764,-151.0,0.00011506,2]
[352336257,1739045443775,-228.279158,0.00011506,2]
[352336259,1739045443784,-183.24534,0.00011506,2]
[352336261,1739045443794,-500.0,0.00011506,2]
[352336263,1739045443803,-644.37,0.00011506,2]
[352336265,1739045443813,-664.24,0.00011506,2]
[352336266,1739045443823,-2935.54,0.00011506,2]
[352336268,1739045443832,-815.3,0.00011506,2]
[352336270,1739045443843,-25349.14,0.00011506,2]
[352336272,1739045443852,-151.0,0.00011506,2]
[352336274,1739045443861,-500.0,0.00011506,2]
[352336276,1739045443871,-500.0,0.00011506,2]
[352336278,1739045443880,-2548.44,0.00011506,2]
[352336280,1739045443890,-1331.75,0.00011506,2]
[352336282,1739045443899,-500.0,0.00011506,2]
[352336284,1739045443909,-1104.32,0.00011506,2]
[352336286,1739045443919,-509.920574,0.00011506,2]
[352336288,1739045443929,-509.920574,0.00011506,2]
[352336289,1739045443938,-10258.46,0.00011506,2]
[352336290,1739045443947,-901.75,0.00011506,2]
[352336291,1739045443957,-500.0,0.00011506,2]
[352336292,1739045443967,-992.19,0.00011506,2]
[352336293,1739045443976,-689.47,0.00011506,2]
[352336294,1739045443985,-500.0,0.00011506,2]
[352336295,1739045443994,-598.87,0.00011506,2]
[352336296,1739045444003,-500.0,0.00011506,2]
[352336297,1739045444012,-500.0,0.00011506,2]
[352336298,1739045444022,-1030.68,0.00011506,2]
[352336299,1739045444031,-500.0,0.00011506,2]
[352336300,1739045444039,-868.14,0.00011506,2]
[352336301,1739045444049,-500.0,0.00011506,2]
[352336302,1739045444058,-550.25,0.00011506,2]
[352336303,1739045444067,-1125.95,0.00011506,2]
[352336304,1739045444076,-500.0,0.00011506,2]
[352336305,1739045444085,-500.0,0.00011506,2]
[352336306,1739045444095,-500.0,0.00011506,2]
[352336307,1739045444104,-1974.67,0.00011506,2]
[352336308,1739045444117,-338.444379,0.00011506,2]
[352336309,1739045444127,-500.0,0.00011506,2]
[352336310,1739045444136,-500.0,0.00011506,2]
[352336311,1739045444146,-338.444379,0.00011506,2]
[352336312,1739045444156,-500.0,0.00011506,2]
[352336313,1739045444165,-2106.72,0.00011506,2]
[352336314,1739045444177,-931.62,0.00011506,2]
[352336315,1739045444187,-1835.32,0.00011506,2]
[352336316,1739045444197,-500.0,0.00011506,2]
[352336317,1739045444207,-5165.62,0.00011506,2]
[352336318,1739045444216,-500.0,0.00011506,2]
[352336319,1739045444225,-304.522747,0.00011506,2]
[352336320,1739045444235,-500.0,0.00011506,2]
[352336321,1739045444244,-304.522747,0.00011506,2]
[352336322,1739045444254,-813.1,0.00011506,2]
[352336323,1739045444263,-500.0,0.00011506,2]
[352336324,1739045444273,-980.49,0.00011506,2]
[352336325,1739045444282,-500.0,0.00011506,2]
[352336326,1739045444291,-500.0,0.00011506,2]
[352336327,1739045444301,-890.74,0.00011506,2]
[352336328,1739045444310,-500.0,0.00011506,2]
[352336329,1739045444319,-500.0,0.00011506,2]
[352336331,1739045444329,-500.0,0.00011506,2]
[352336333,1739045444338,-500.0,0.00011506,2]
[352336335,1739045444348,-2100.73,0.00011506,2]
[352336338,1739045444357,-697.61,0.00011506,2]
[352336340,1739045444366,-500.0,0.00011506,2]
[352336342,1739045444376,-500.0,0.00011506,2]
[352336344,1739045444386,-9524.0,0.00011506,2]
[352336346,1739045444395,-1778.64,0.00011506,2]
[352336348,1739045444405,-802.994746,0.00011506,2]
[352336350,1739045444414,-513.95,0.00011506,2]
[352336352,1739045444424,-802.994746,0.00011506,2]
[352336354,1739045444433,-3625.45,0.00011506,2]
[352336356,1739045444443,-500.0,0.00011506,2]
[352336358,1739045444452,-581.28,0.00011506,2]
[352336360,1739045444463,-988.76,0.00011506,2]
[352336361,1739045444472,-1999.03,0.00011506,2]
[352336363,1739045444482,-500.0,0.00011506,2]
[352336365,1739045444492,-651.28,0.00011506,2]
[352336368,1739045444502,-500.0,0.00011506,2]
[352336370,1739045444511,-151.0,0.000116,2]
[352336371,1739045444521,-151.0,0.000116,2]
[352336374,1739045444530,-1000.0,0.0001161,2]
[352336376,1739045444540,-500.0,0.00011643,2]
[352336378,1739045444549,-500.0,0.00011643,2]
[352336380,1739045444559,-895.58,0.00011643,2]
[352336382,1739045444568,-594.22,0.00011643,2]
[352336384,1739045444577,-940.53,0.00011643,2]
[352336386,1739045444587,-500.0,0.00011643,2]
[352336388,1739045444597,-500.0,0.00011643,2]
[352336390,1739045444606,-500.0,0.00011643,2]
[352336391,1739045444616,-725.5,0.00011643,2]
[352336393,1739045444626,-665.28,0.00011643,2]
[352336396,1739045444636,-500.0,0.00011643,2]
[352336398,1739045444646,-151.0,0.00011643,2]
[352336400,1739045444655,-215.284245,0.00011643,2]
[352336402,1739045444665,-822.94,0.00011643,2]
[352336403,1739045444674,-500.0,0.00011643,2]
[352336406,1739045444683,-500.0,0.00011643,2]
[352336407,1739045444692,-500.0,0.00011643,2]
[352336409,1739045444702,-711.34,0.00011643,2]
[352336411,1739045444711,-722.519455,0.00011643,2]
[352336413,1739045444721,-722.519455,0.00011643,2]
[352336415,1739045444730,-500.0,0.00011643,2]
[352336416,1739045444739,-500.0,0.00011643,2]
[352336417,1739045444748,-500.0,0.00011643,2]
[352336418,1739045444758,-500.0,0.00011643,2]
[352336419,1739045444767,-760.39,0.00011643,2]
[352336420,1739045444777,-500.0,0.00011643,2]
[352336421,1739045444786,-567.02,0.00011643,2]
[352336422,1739045444796,-500.0,0.00011643,2]
[352336423,1739045444805,-151.0,0.00011643,2]
[352336424,1739045444814,-151.0,0.00011643,2]
[352336425,1739045444824,-500.0,0.00011643,2]
[352336426,1739045444833,-644.37,0.00011643,2]
[352336427,1739045444845,-664.24,0.00011643,2]
[352336428,1739045444854,-2935.54,0.00011643,2]
[352336429,1739045444863,-151.0,0.00011643,2]
[352336430,1739045444873,-815.3,0.00011643,2]
[352336431,1739045444882,-25349.14,0.00011643,2]
[352336432,1739045444892,-500.0,0.00011643,2]
[352336433,1739045444902,-500.0,0.00011643,2]
[352336435,1739045444911,-2548.44,0.00011643,2]
[352336437,1739045444921,-1331.75,0.00011643,2]
[352336438,1739045444931,-500.0,0.00011643,2]
[352336440,1739045444940,-1104.32,0.00011643,2]
[352336442,1739045444950,-10258.46,0.00011643,2]
[352336444,1739045444959,-901.75,0.00011643,2]
[352336446,1739045444969,-500.0,0.00011643,2]
[352336448,1739045444979,-992.19,0.00011643,2]
[352336450,1739045444989,-689.47,0.00011643,2]
[352336452,1739045444998,-500.0,0.00011643,2]
[352336454,1739045445009,-598.87,0.00011643,2]
[352336456,1739045445019,-500.0,0.00011643,2]
[352336457,1739045445034,-1030.68,0.00011643,2]
[352336459,1739045445051,-500.0,0.00011643,2]
[352336461,1739045445063,-868.14,0.00011643,2]
[352336464,1739045445078,-500.0,0.00011643,2]
[352336466,1739045445090,-1125.95,0.00011643,2]
[352336468,1739045445100,-500.0,0.00011643,2]
[352336470,1739045445110,-500.0,0.00011643,2]
[352336472,1739045445123,-500.0,0.00011643,2]
[352336474,1739045445133,-1974.67,0.00011643,2]
[352336476,1739045445143,-500.0,0.00011643,2]
[352336477,1739045445152,-500.0,0.00011643,2]
[352336479,1739045445163,-2106.72,0.00011643,2]
[352336481,1739045445172,-931.62,0.00011643,2]
[352336482,1739045445182,-1835.32,0.00011643,2]
[352336485,1739045445194,-500.0,0.00011643,2]
[352336487,1739045445203,-5165.62,0.00011643,2]
[352336489,1739045445213,-500.0,0.00011643,2]
[352336490,1739045445223,-500.0,0.00011643,2]
[352336493,1739045445232,-813.1,0.00011643,2]
[352336494,1739045445241,-500.0,0.00011643,2]
[352336496,1739045445251,-980.49,0.00011643,2]
[352336498,1739045445261,-500.0,0.00011643,2]
[352336500,1739045445272,-500.0,0.00011643,2]
[352336502,1739045445281,-890.74,0.00011643,2]
[352336504,1739045445291,-500.0,0.00011643,2]
[352336506,1739045445300,-500.0,0.00011643,2]
[352336508,1739045445310,-500.0,0.00011643,2]
[352336511,1739045445319,-500.0,0.00011643,2]
[352336513,1739045445329,-2100.73,0.00011643,2]
[352336514,1739045445339,-697.61,0.00011643,2]
[352336517,1739045445348,-151.0,0.00011643,2]
[352336518,1739045445358,-500.0,0.00011643,2]
[352336521,1739045445367,-500.0,0.00011643,2]
[352336523,1739045445376,-9524.0,0.00011643,2]
[352336525,1739045445385,-1778.64,0.00011643,2]
[352336527,1739045445394,-513.95,0.00011643,2]
[352336529,1739045445404,-3625.45,0.00011643,2]
[352336532,1739045445414,-500.0,0.00011643,2]
[352336534,1739045445423,-581.28,0.00011643,2]
[352336536,1739045445433,-988.76,0.00011643,2]
[352336538,1739045445442,-1999.03,0.00011643,2]
[352336540,1739045445451,-500.0,0.00011643,2]
[352336542,1739045445460,-651.28,0.00011643,2]
[352336545,1739045445470,-500.0,0.00011643,2]
[352336548,1739045445479,-151.0,0.000117,2]
[352336551,1739045445489,-151.0,0.000117,2]
[352336553,1739045445499,-151.0,0.0001178,2]
[352336556,1739045445508,-500.0,0.0001178,2]
[352336559,1739045445517,-500.0,0.0001178,2]
[352336562,1739045445527,-895.58,0.0001178,2]
[352336565,1739045445536,-594.22,0.0001178,2]
[352336568,1739045445546,-151.0,0.0001178,2]
[352336571,1739045445555,-940.53,0.0001178,2]
[352336574,1739045445565,-313.94054,0.0001178,2]
[352336578,1739045445574,-313.94054,0.0001178,2]
[352336580,1739045445584,-500.0,0.0001178,2]
[352336583,1739045445596,-500.0,0.0001178,2]
[352336586,1739045445606,-151.0,0.0001178,2]
[352336589,1739045445615,-500.0,0.0001178,2]
[352336591,1739045445625,-725.5,0.0001178,2]
[352336593,1739045445635,-665.28,0.0001178,2]
[352336595,1739045445644,-500.0,0.0001178,2]
[352336597,1739045445653,-151.0,0.0001178,2]
[352336599,1739045445663,-822.94,0.0001178,2]
[352336601,1739045445673,-151.0,0.0001178,2]
[352336603,1739045445682,-500.0,0.0001178,2]
[352336605,1739045445691,-151.0,0.0001178,2]
[352336607,1739045445701,-500.0,0.0001178,2]
[352336609,1739045445710,-500.0,0.0001178,2]
[352336611,1739045445720,-711.34,0.0001178,2]
[352336613,1739045445729,-500.0,0.0001178,2]
[352336615,1739045445738,-151.0,0.0001178,2]
[352336617,1739045445748,-500.0,0.0001178,2]
[352336619,1739045445757,-264.327127,0.0001178,2]
[352336621,1739045445767,-264.327127,0.0001178,2]
[352336622,1739045445776,-500.0,0.0001178,2]
[352336624,1739045445785,-500.0,0.0001178,2]
[352336626,1739045445795,-760.39,0.0001178,2]
[352336628,1739045445805,-255.701513,0.0001178,2]
[352336630,1739045445814,-500.0,0.0001178,2]
[352336632,1739045445823,-255.701513,0.0001178,2]
[352336635,1739045445833,-217.921946,0.0001178,2]
[352336637,1739045445844,-217.921946,0.0001178,2]
[352336638,1739045445854,-567.02,0.0001178,2]
[352336641,1739045445864,-500.0,0.0001178,2]
[352336643,1739045445874,-151.0,0.0001178,2]
[352336645,1739045445883,-500.0,0.0001178,2]
[352336647,1739045445893,-644.37,0.0001178,2]
[352336649,1739045445902,-664.24,0.0001178,2]
[352336650,1739045445911,-2935.54,0.0001178,2]
[352336653,1739045445921,-815.3,0.0001178,2]
[352336655,1739045445931,-25349.14,0.0001178,2]
[352336657,1739045445940,-151.0,0.0001178,2]
[352336659,1739045445950,-446.86467182,0.0001178,2]
[352336660,1739045445959,-500.0,0.0001178,2]
[352336662,1739045445968,-2548.44,0.0001178,2]
[352336665,1739045445979,-1331.75,0.0001178,2]
[352336667,1739045445989,-500.0,0.0001178,2]
[352336669,1739045445998,-1104.32,0.0001178,2]
[352336671,1739045446008,-509.920574,0.0001178,2]
[352336673,1739045446018,-509.920574,0.0001178,2]
[352336675,1739045446028,-10258.46,0.0001178,2]
[352336677,1739045446038,-901.75,0.0001178,2]
[352336679,1739045446047,-500.0,0.0001178,2]
[352336681,1739045446057,-992.19,0.0001178,2]
[352336683,1739045446067,-689.47,0.0001178,2]
[352336685,1739045446075,-598.87,0.0001178,2]
[352336687,1739045446085,-500.0,0.0001178,2]
[352336689,1739045446096,-1030.68,0.0001178,2]
[352336691,1739045446106,-500.0,0.0001178,2]
[352336694,1739045446118,-868.14,0.0001178,2]
[352336695,1739045446128,-1125.95,0.0001178,2]
[352336699,1739045446137,-500.0,0.0001178,2]
[352336701,1739045446147,-500.0,0.0001178,2]
[352336702,1739045446157,-500.0,0.0001178,2]
[352336705,1739045446167,-1974.67,0.0001178,2]
[352336707,1739045446177,-338.444379,0.0001178,2]
[352336709,1739045446187,-338.444379,0.0001178,2]
[352336711,1739045446199,-500.0,0.0001178,2]
[352336713,1739045446210,-2106.72,0.0001178,2]
[352336715,1739045446219,-931.62,0.0001178,2]
[352336717,1739045446229,-1835.32,0.0001178,2]
[352336719,1739045446238,-500.0,0.0001178,2]
[352336721,1739045446247,-5165.62,0.0001178,2]
[352336723,1739045446257,-304.522747,0.0001178,2]
[352336725,1739045446266,-500.0,0.0001178,2]
[352336727,1739045446275,-500.0,0.0001178,2]
[352336728,1739045446285,-304.522747,0.0001178,2]
[352336730,1739045446294,-813.1,0.0001178,2]
[352336732,1739045446303,-500.0,0.0001178,2]
[352336734,1739045446312,-980.49,0.0001178,2]
[352336736,1739045446322,-500.0,0.0001178,2]
[352336739,1739045446332,-500.0,0.0001178,2]
[352336741,1739045446343,-890.74,0.0001178,2]
[352336743,1739045446352,-500.0,0.0001178,2]
[352336745,1739045446360,-372.26192306,0.0001178,2]
[352336765,1739045446902,-127.73807694,0.0001178,2]
[352336767,1739045447004,-500.0,0.0001178,2]
[352336769,1739045447116,-500.0,0.0001178,2]
[352336771,1739045447275,-2100.73,0.0001178,2]
[352336773,1739045447379,-697.61,0.0001178,2]
[352336775,1739045447493,-500.0,0.0001178,2]
[352336777,1739045447596,-500.0,0.0001178,2]
[352336778,1739045447662,-9524.0,0.0001178,2]
[352336781,1739045447722,-1778.64,0.0001178,2]
[352336783,1739045447734,-802.994746,0.0001178,2]
[352336784,1739045447745,-513.95,0.0001178,2]
[352336786,1739045447756,-802.994746,0.0001178,2]
[352336788,1739045447766,-3625.45,0.0001178,2]
[352336790,1739045447776,-500.0,0.0001178,2]
[352336792,1739045447786,-268.06079782,0.0001178,2]
[352336820,1739045448128,-313.21920218,0.0001178,2]
[352336822,1739045448138,-841.78079802,0.0001178,2]
[352336824,1739045448151,-146.97920198,0.0001178,2]
[352336826,1739045448161,-1939.87428492,0.0001178,2]
[352336828,1739045448173,-59.15571508,0.0001178,2]
[352336830,1739045448183,-500.0,0.0001178,2]
[352336832,1739045448194,-651.28,0.0001178,2]
[352336833,1739045448205,-500.0,0.0001178,2]
[352336835,1739045448215,-151.0,0.000118,2]
[352336837,1739045448225,-747.96428492,0.00011817,2]
[352336871,1739045448621,-3703.39975873,0.00011817,2]
[352336873,1739045448631,-2500.0,0.00011873,2]
[352336875,1739045448642,-2500.0,0.00011882,2]
[352336877,1739045448653,-1500.0,0.00011884,2]
[352336878,1739045448664,-2500.0,0.00011891,2]
[352336880,1739045448675,-1000.0,0.00011896,2]
[352336882,1739045448686,-2500.0,0.00011899,2]
[352336884,1739045448699,-151.0,0.000119,2]
[352336886,1739045448710,-2500.0,0.00011908,2]
[352336888,1739045448720,-2500.0,0.00011917,2]
[352336890,1739045448731,-283.014489,0.00011917,2]
[352336892,1739045448742,-283.014489,0.00011917,2]
[352336894,1739045448753,-367.37447,0.00011917,2]
[352336896,1739045448764,-367.37447,0.00011917,2]
[352336897,1739045448775,-151.0,0.00011917,2]
[352336899,1739045448786,-151.0,0.00011917,2]
[352336901,1739045448798,-151.0,0.00011917,2]
[352336903,1739045448808,-500.0,0.00011917,2]
[352336905,1739045448819,-151.0,0.00011917,2]
[352336907,1739045448829,-592.8829302,0.00011917,2]
[352336909,1739045448840,-347.31,0.00011917,2]
[352336910,1739045448855,-895.58,0.00011917,2]
[352336912,1739045448865,-594.22,0.00011917,2]
[352336914,1739045448876,-940.53,0.00011917,2]
[352336916,1739045448888,-500.0,0.00011917,2]
[352336918,1739045448899,-378.38384662,0.00011917,2]
[352336920,1739045448909,-725.5,0.00011917,2]
[352336922,1739045448921,-665.28,0.00011917,2]
[352336924,1739045448932,-500.0,0.00011917,2]
[352336925,1739045448943,-151.0,0.00011917,2]
[352336927,1739045448955,-822.94,0.00011917,2]
[352336929,1739045448965,-500.0,0.00011917,2]
[352336931,1739045448976,-500.0,0.00011917,2]
[352336933,1739045448987,-500.0,0.00011917,2]
[352336935,1739045448997,-711.34,0.00011917,2]
[352336936,1739045449008,-722.519455,0.00011917,2]
[352336938,1739045449019,-722.519455,0.00011917,2]
[352336940,1739045449029,-500.0,0.00011917,2]
[352336942,1739045449040,-500.0,0.00011917,2]
[352336944,1739045449050,-500.0,0.00011917,2]
[352336946,1739045449059,-500.0,0.00011917,2]
[352336948,1739045449070,-760.39,0.00011917,2]
[352336950,1739045449080,-500.0,0.00011917,2]
[352336951,1739045449091,-567.02,0.00011917,2]
[352336953,1739045449105,-500.0,0.00011917,2]
[352336955,1739045449116,-151.0,0.00011917,2]
[352336957,1739045449132,-151.0,0.00011917,2]
[352336959,1739045449143,-551.65582364,0.00011917,2]
[352336961,1739045449155,-644.37,0.00011917,2]
[352336963,1739045449167,-664.24,0.00011917,2]
[352336965,1739045449178,-2935.54,0.00011917,2]
[352336967,1739045449189,-151.0,0.00011917,2]
[352336969,1739045449201,-25349.14,0.00011917,2]
[352336971,1739045449216,-500.0,0.00011917,2]
[352336973,1739045449227,-2548.44,0.00011917,2]
[352336974,1739045449239,-622.02081281,0.00011917,2]
[352336977,1739045449254,-709.72918719,0.00011917,2]
[352336979,1739045449265,-1104.32,0.00011917,2]
[352336980,1739045449276,-1868.08549859,0.00011917,2]
[352336983,1739045449293,-8390.37450141,0.00011917,2]
[352336984,1739045449304,-901.75,0.00011917,2]
[352336986,1739045449315,-992.19,0.00011917,2]
[352336988,1739045449325,-689.47,0.00011917,2]
[352336990,1739045449335,-598.87,0.00011917,2]
[352336992,1739045449348,-500.0,0.00011917,2]
[352336994,1739045449358,-1030.68,0.00011917,2]
[352336996,1739045449368,-500.0,0.00011917,2]
[352336998,1739045449378,-757.96549858,0.00011917,2]
[352337012,1739045449544,-110.17450142,0.00011917,2]
[352337014,1739045449555,-1125.95,0.00011917,2]
[352337016,1739045449565,-221.04445972,0.00011917,2]
[352337094,1739045450723,-278.95554028,0.00011917,2]
[352337095,1739045450732,-248.19445982,0.00011917,2]
[352337814,1739046071588,200.0,8e-05,2]
[352337823,1739046437125,-300.07838518,0.00010685,2]
[352337824,1739046440096,-99.92161482,0.00010685,2]
[352337825,1739046440118,-282.54059356,0.00010857,2]
[352337826,1739046440140,-70.89530791,0.00010957,2]
[352337911,1739046632166,-156.93806554,0.00010583,5]
[352337913,1739046632176,-300.0,0.00010957,2]
[352337914,1739046632186,-500.0,0.00010957,2]
[352337915,1739046632195,-411.25338935,0.00010957,2]
[352337917,1739046632205,-498.31219008,0.00010958,2]
[352337919,1739046632214,-514.07897582,0.00010958,2]
[352337921,1739046632224,-268.32934947,0.00010958,2]
[352337923,1739046632233,-504.28613947,0.00010958,2]
[352337925,1739046632242,-254.00005632,0.00010958,2]
[352337928,1739046632252,-500.0,0.00010958,2]
[352337930,1739046632261,-500.0,0.00010958,2]
[352337932,1739046632270,-336.46454306,0.00010958,2]
[352337934,1739046632279,-500.0,0.00010958,2]
[352337936,1739046632288,-500.0,0.00010958,2]
[352337938,1739046632297,-500.0,0.00010958,2]
[352337940,1739046632307,-500.0,0.00010958,2]
[352337942,1739046632317,-500.0,0.00010958,2]
[352337944,1739046632328,-500.0,0.00010958,2]
[352337946,1739046632337,-892.92,0.00010958,2]
[352337948,1739046632347,-500.0,0.00010958,2]
[352337950,1739046632356,-500.0,0.00010958,2]
[352337952,1739046632365,-904.88,0.00010958,2]
[352337954,1739046632375,-500.0,0.00010958,2]
[352337956,1739046632385,-500.0,0.00010958,2]
[352337958,1739046632394,-500.0,0.00010958,2]
[352337960,1739046632403,-500.0,0.00010958,2]
[352337962,1739046632412,-500.0,0.00010958,2]
[352337964,1739046632421,-500.0,0.00010958,2]
[352337966,1739046632431,-500.0,0.00010958,2]
[352337968,1739046632440,-500.0,0.00010958,2]
[352337970,1739046632449,-226.61407805,0.00010958,2]
[352337972,1739046632459,-500.0,0.00010958,2]
[352337974,1739046632468,-500.0,0.00010958,2]
[352337976,1739046632477,-594.56,0.00010958,2]
[352337978,1739046632487,-186.45,0.00010958,2]
[352337980,1739046632497,-819.57,0.00010958,2]
[352337982,1739046632506,-500.0,0.00010958,2]
[352337984,1739046632515,-500.0,0.00010958,2]
[352337986,1739046632524,-500.0,0.00010958,2]
[352337988,1739046632534,-500.0,0.00010958,2]
[352337990,1739046632546,-500.0,0.00010958,2]
[352337992,1739046632555,-500.0,0.00010958,2]
[352337994,1739046632565,-500.0,0.00010958,2]
[352337996,1739046632574,-500.0,0.00010958,2]
[352337998,1739046632583,-500.0,0.00010958,2]
[352338000,1739046632592,-641.21853698,0.00010958,2]
[352338003,1739046632605,-500.0,0.00010958,2]
[352338005,1739046632614,-500.0,0.00010958,2]
[352338007,1739046632623,-693.57,0.00010958,2]